Workbook

Sheet Area
B2: N4 Lifeskills - Problem Solving Area Created by Mr.Lafferty@mathsrevision.com
B7: ="Q1. Hannah wants to wallpaper one wall in her livingroom." -> Q1. Hannah wants to wallpaper one wall in her livingroom.
C9: =" 1 roll of wallpaper measures "&BB17&" in length and "&BA14&" in width." -> 1 roll of wallpaper measures 9m in length and 50cm in width. | AU9: =BB15 -> 3m
C11: ="(a) Work out how many rolls of wallpaper she will need." -> (a) Work out how many rolls of wallpaper she will need. | AZ11: =ROUND(RAND()*(4-3)+3,0) -> 3 | BA11: height length
AZ12: =AZ11*2+ROUND(RAND()*(2-1)+1,0) -> 7 | BA12: length of room
V13: rolls | AD13: =BA14 -> 50cm | AZ13: =ROUND(RAND()*(10-4)+4,0) -> 9 | BA13: wallpaper length
AD14: =BB16 -> 7m | AZ14: =ROUND(RAND()*(8-4)+4,0)*10 -> 50 | BA14: =CONCATENATE(AZ14,"cm") -> 50cm
AZ15: =ROUNDUP((AZ12*100/AZ14),0) -> 14 | BB15: =CONCATENATE(AZ11,"m") -> 3m
C16: ="(b) Given one roll of wallpaper cost £"&TEXT(AZ18,"0.00")&" calculate her total cost for the wallpaper." -> (b) Given one roll of wallpaper cost £10.70 calculate her total cost for the wallpaper. | AZ16: =AZ15*AZ11 -> 42 | BB16: =CONCATENATE(AZ12,"m") -> 7m
AF17: £ | AZ17: =ROUNDUP(AZ16/AZ13,0) -> 5 | BB17: =CONCATENATE(AZ13,"m") -> 9m
AZ18: =ROUND(RAND()*(15-8)+8,1) -> 10.7
AZ19: =ROUND(AZ17*AZ18,2) -> 53.5
B21: ="Q2. Alistair the tiler has got a job to tile a bathroom wall." -> Q2. Alistair the tiler has got a job to tile a bathroom wall. | AZ21: =ROUND(RAND()*(5-3)+3,0) -> 5 | BA21: =CONCATENATE(AZ21,"m") -> 5m
AZ22: =AZ21+1 -> 6
C23: ="He uses square tiles that have sides "&BA23&"." -> He uses square tiles that have sides 60cm. | AZ23: =ROUND(RAND()*(8-4)+4,0)*10 -> 60 | BA23: =CONCATENATE(AZ23,"cm") -> 60cm
AR24: =BB25 -> 3m
C25: ="(a) Work out how many tiles he needs to cover the whole wall." -> (a) Work out how many tiles he needs to cover the whole wall. | AZ25: =AZ21*AZ23 -> 300 | BA25: =AZ25/100 -> 3 | BB25: =CONCATENATE(BA25,"m") -> 3m | BC25: height length
AZ26: =AZ22*AZ23 -> 360 | BA26: =AZ26/100 -> 3.6 | BB26: =CONCATENATE(BA26,"m") -> 3.6m | BC26: length of room
V27: tiles
AK28: =BB26 -> 3.6m
AZ29: =AZ22*AZ21 -> 30
C30: ="(b) Given a pack of 6 tiles cost £"&TEXT(AZ32,"0.00")&". Calculate the total cost of the tiles." -> (b) Given a pack of 6 tiles cost £27.90. Calculate the total cost of the tiles.
AF31: £
AZ32: =ROUND(RAND()*(40-20.2)+20.2,1) -> 27.9
AZ33: =ROUNDUP(AZ29/6,0)*AZ32 -> 139.5
AZ34: =ROUND(RAND()*(2-1.5)+1.5,1) -> 1.9 | BA34: =CONCATENATE(AZ34,"m") -> 1.9m
B35: ="Q3. Kyle is going to paint the outside walls of his tool shed. The shed has a window." -> Q3. Kyle is going to paint the outside walls of his tool shed. The shed has a window. | AZ35: =ROUND(RAND()*(8-5)+5,0)*0.5 -> 2.5 | BA35: =CONCATENATE(AZ35,"m") -> 2.5m
D36: ="The shed is in the shape of a cuboid." -> The shed is in the shape of a cuboid. | AR36: =BA35 -> 2.5m | AZ36: =AZ35-ROUND(RAND()*(1-0.5)+0.5,1) -> 1.5 | BA36: =CONCATENATE(AZ36,"m") -> 1.5m
AZ37: =AZ36+ROUND(RAND()*(2-1.2)+1.2,1) -> 3 | BA37: 3m
D38: =" 1 litre of paint covers an area of "&AZ42&" square metres and costs £"&TEXT(AZ46,"0.00")&"." -> 1 litre of paint covers an area of 9 square metres and costs £19.70. | AI38: 1m | AZ38: =2*AZ35*AZ36 -> 7.5
AZ39: =2*AZ37*AZ35-(1*AZ34) -> 13.1
AK40: =BA34 -> 1.9m
C41: ="(a) How many tins of paint will Kyle need ?" -> (a) How many tins of paint will Kyle need ? | V41: tins | AQ41: =BA36 -> 1.5m
AF42: =BA37 -> 3m | AZ42: =ROUND(RAND()*(15-7)+7,0) -> 9 | BA42: coverage
AZ43: =AZ38+AZ39 -> 20.6 | BA43: Area needed
C44: ="(b) Calculate the total cost of the paint needed." -> (b) Calculate the total cost of the paint needed. | S44: £ | AZ44: =AZ43/AZ42 -> 2.288888889
AZ45: =ROUNDUP(AZ44,0) -> 3 | BA45: tins
AZ46: =ROUND(RAND()*(19.9-9.9)+9.9,1) -> 19.7
AZ47: =AZ45*AZ46 -> 59.1
AZ48: =ROUND(RAND()*(15-8)+8,0) -> 10 | BA48: =CONCATENATE(AZ48,"m") -> 10m
B49: ="Q4. Mr Lafferty is going to returf his lawn." -> Q4. Mr Lafferty is going to returf his lawn. | AZ49: =ROUND(AZ48 +AZ48*1.6,0) -> 26 | BA49: =CONCATENATE(AZ49,"m") -> 26m
C50: The lawn is in the shape of a square and a triangle. | AC50: =BA48 -> 10m
C52: =" The turf comes in rolls which cover an area of "&AZ55&" square metres and cost £"&TEXT(AZ57,"0.00")&"." -> The turf comes in rolls which cover an area of 8 square metres and cost £4.10.
AF54: =BA49 -> 26m
C55: ="(a) How many "&AZ55&" square metres of turf will he need ?" -> (a) How many 8 square metres of turf will he need ? | X55: rolls | AZ55: =ROUND(RAND()*(10-3)+3,0) -> 8
AZ56: =AZ48*AZ48+0.5*(AZ49-AZ48)*AZ48 -> 180 | BA56: coverage
AZ57: =ROUND(RAND()*(4.5-2.5)+2.5,1) -> 4.1 | BA57: cost
C58: ="(b) Calculate the total cost of the turf needed." -> (b) Calculate the total cost of the turf needed. | S58: £ | AZ58: =ROUNDUP(AZ56/AZ55,0) -> 23
AZ61: =AZ58*AZ57 -> 94.3

Sheet Volume
B2: N4 Lifeskills - Problem Solving Volume Created by Mr.Lafferty@mathsrevision.com
BC5: OP1 | BE5: OP2 | BG5: OP3 | BI5: OP4 | BK5: OP5 | BM5: OP6
AZ6: =AZ9*ROUND(RAND()*(10-5)+5,0) -> 24 | BB6: 1,1 | BC6: =ROUNDDOWN(AZ6/AZ9,0) -> 8 | BD6: 1,1 | BE6: =ROUNDDOWN(AZ6/AZ9,0) -> 8 | BF6: 2,1 | BG6: =ROUNDDOWN(AZ7/AZ9,0) -> 10 | BH6: 2,1 | BI6: =ROUNDDOWN(AZ7/AZ9,0) -> 10 | BJ6: 3,1 | BK6: =ROUNDDOWN(AZ8/AZ9,0) -> 6 | BL6: 3,1 | BM6: =ROUNDDOWN(AZ8/AZ9,0) -> 6
C7: ="Q1. A food storage box capacity is in the shape of a cuboid and measures "&AZ6&"cm by "&AZ7&"cm by "&AZ8&"cm." -> Q1. A food storage box capacity is in the shape of a cuboid and measures 24cm by 30cm by 18cm. | AZ7: =AZ10*ROUND(RAND()*(10-5)+5,0) -> 30 | BB7: 2,2 | BC7: =ROUNDDOWN(AZ7/AZ10,0) -> 10 | BD7: 2,3 | BE7: =ROUNDDOWN(AZ7/AZ11,0) -> 10 | BF7: 1,2 | BG7: =ROUNDDOWN(AZ6/AZ10,0) -> 8 | BH7: 1,3 | BI7: =ROUNDDOWN(AZ6/AZ11,0) -> 8 | BJ7: 2,2 | BK7: =ROUNDDOWN(AZ7/AZ10,0) -> 10 | BL7: 2,3 | BM7: =ROUNDDOWN(AZ7/AZ11,0) -> 10
AZ8: =AZ11*ROUND(RAND()*(10-5)+5,0) -> 18 | BB8: 3,3 | BC8: =ROUNDDOWN(AZ8/AZ11,0) -> 6 | BD8: 3,2 | BE8: =ROUNDDOWN(AZ8/AZ10,0) -> 6 | BF8: 3,3 | BG8: =ROUNDDOWN(AZ8/AZ11,0) -> 6 | BH8: 3,2 | BI8: =ROUNDDOWN(AZ8/AZ10,0) -> 6 | BJ8: 1,3 | BK8: =ROUNDDOWN(AZ6/AZ11,0) -> 8 | BL8: 1,2 | BM8: =ROUNDDOWN(AZ6/AZ10,0) -> 8
D9: ="Identical small CUBE shaped boxes measuring "&AZ9&"cm are placed in the larger box" -> Identical small CUBE shaped boxes measuring 3cm are placed in the larger box | AZ9: =ROUND(RAND()*(6-3)+3,0)*0.5 -> 3 | BB9: 0 | BC9: =BC6*BC7*BC8 -> 480 | BD9: 0 | BE9: =BE6*BE7*BE8 -> 480 | BF9: 0 | BG9: =BG6*BG7*BG8 -> 480 | BH9: 0 | BI9: =BI6*BI7*BI8 -> 480 | BJ9: 0 | BK9: =BK6*BK7*BK8 -> 480 | BL9: 0 | BM9: 480
AZ10: =AZ9 -> 3
D11: What is the maximum number of small boxes that can fit exactly into the larger box ? | AZ11: =AZ10 -> 3
AZ12: =AZ6*AZ7*AZ8 -> 12960
AZ13: =AZ9*AZ10*AZ11 -> 27
Q14: small boxes | AZ14: =MAX(BB9:BM9) -> 480
AZ20: =ROUND(RAND()*(15-10)+10,0) -> 11 | BA20: =CONCATENATE(AZ20,"cm") -> 11cm
C21: ="Q2. Irn-Bru cans must be stored upright. The are storaged in large cuboid containers measuring "&BB23&"m by "&BB24&"m by "&BB25&"m." -> Q2. Irn-Bru cans must be stored upright. The are storaged in large cuboid containers measuring 6.93m by 2.31m by 7.56m. | AZ21: =ROUND(1.6*AZ20,0) -> 18 | BA21: =CONCATENATE(AZ21,"cm") -> 18cm
AZ23: =3*ROUND(RAND()*(50-20)+20,0) -> 63 | BA23: =AZ23*AZ20 -> 693 | BB23: =BA23/100 -> 6.93
AB24: =BA21 -> 18cm | AZ24: =ROUND(1/3*AZ23,0) -> 21 | BA24: =AZ20*AZ24 -> 231 | BB24: =BA24/100 -> 2.31
D25: How many IRN-BRU cans are in the container ? | AZ25: =ROUND(2/3*AZ23,0) -> 42 | BA25: =AZ21*AZ25 -> 756 | BB25: =BA25/100 -> 7.56
Q30: cans | X30: =BA20 -> 11cm | AZ30: =AZ23*AZ24*AZ25 -> 55566
AZ34: =ROUND(RAND()*(12-7)+7,0)*50 -> 550 | BB34: 1,1 | BC34: =ROUNDDOWN(AZ34/AZ37,0) -> 5 | BD34: 1,1 | BE34: =ROUNDDOWN(AZ34/AZ37,0) -> 5 | BF34: 2,1 | BG34: =ROUNDDOWN(AZ35/AZ37,0) -> 3 | BH34: 2,1 | BI34: =ROUNDDOWN(AZ35/AZ37,0) -> 3 | BJ34: 3,1 | BK34: =ROUNDDOWN(AZ36/AZ37,0) -> 2 | BL34: 3,1 | BM34: =ROUNDDOWN(AZ36/AZ37,0) -> 2
C35: ="Q3. A lorry storage capacity is in the shape of a cuboid and measures "&AZ34&"cm by "&AZ35&"cm by "&AZ36&"cm." -> Q3. A lorry storage capacity is in the shape of a cuboid and measures 550cm by 350cm by 200cm. | AZ35: =AZ34-100*ROUND(RAND()*(2-1)+1,0) -> 350 | BB35: 2,2 | BC35: =ROUNDDOWN(AZ35/AZ38,0) -> 3 | BD35: 2,3 | BE35: =ROUNDDOWN(AZ35/AZ39,0) -> 3 | BF35: 1,2 | BG35: =ROUNDDOWN(AZ34/AZ38,0) -> 5 | BH35: 1,3 | BI35: =ROUNDDOWN(AZ34/AZ39,0) -> 5 | BJ35: 2,2 | BK35: =ROUNDDOWN(AZ35/AZ38,0) -> 3 | BL35: 2,3 | BM35: =ROUNDDOWN(AZ35/AZ39,0) -> 3
AZ36: =100*ROUND(RAND()*(2-1)+1,0) -> 200 | BB36: 3,3 | BC36: =ROUNDDOWN(AZ36/AZ39,0) -> 2 | BD36: 3,2 | BE36: =ROUNDDOWN(AZ36/AZ38,0) -> 2 | BF36: 3,3 | BG36: =ROUNDDOWN(AZ36/AZ39,0) -> 2 | BH36: 3,2 | BI36: =ROUNDDOWN(AZ36/AZ38,0) -> 2 | BJ36: 1,3 | BK36: =ROUNDDOWN(AZ34/AZ39,0) -> 5 | BL36: 1,2 | BM36: =ROUNDDOWN(AZ34/AZ38,0) -> 5
D37: ="Identical cuboid boxes measuring "&AZ37&"cm by "&AZ38&"cm by "&AZ39&"cm." -> Identical cuboid boxes measuring 100cm by 100cm by 100cm. | AZ37: =ROUND(RAND()*(3-1)+1,0)*50 -> 100 | BB37: 0 | BC37: =BC34*BC35*BC36 -> 30 | BD37: 0 | BE37: =BE34*BE35*BE36 -> 30 | BF37: 0 | BG37: =BG34*BG35*BG36 -> 30 | BH37: 0 | BI37: =BI34*BI35*BI36 -> 30 | BJ37: 0 | BK37: =BK34*BK35*BK36 -> 30 | BL37: 0 | BM37: =BM34*BM35*BM36 -> 30
AZ38: =ROUND(RAND()*(3-1)+1,0)*50 -> 100
D39: What is the maximum number of boxes the lorry can hold ? | AZ39: =ROUND(RAND()*(3-1)+1,0)*50 -> 100
AZ40: =AZ34*AZ35*AZ36 -> 38500000
AZ41: =AZ37*AZ38*AZ39 -> 1000000 | BA41: =AZ40/AZ41 -> 38.5
D42: ( HINT : There are few different ways to fit the boxes into the lorry ) | AZ42: =MAX(BB37:BM37) -> 30
Q44: boxes
